bitfinex-derivatives/quotes_ETHF0:USTF0_20260201
["timestamp","ask_amount","ask_price","bid_price","bid_amount"]
[1769962425191,0.21644,2312.3,2311.3,3.90537715]
[1769962425592,8.672,2311.7,2311.3,3.90537715]
[1769962425791,16.15554319,2311.7,2311.3,3.90537715]
[1769962425990,8.672,2311.4,2311.3,3.90537715]
[1769962426300,7.282,2311.4,2311.3,3.90537715]
[1769962426800,0.9160717,2311.2,2310.9,3.899]
[1769962427001,10.18530584,2311.4,2310.9,3.899]
[1769962427197,0.9160717,2311.2,2310.9,3.899]
[1769962427497,7.48354319,2311.3,2310.3,6.91843835]
[1769962427804,9.27407452,2311.3,2310.5,10.81743835]
[1769962428500,7.48354319,2312.4,2310.6,6.91843835]
[1769962428700,7.48354319,2312.1,2310.6,6.91843835]
[1769962429102,9.26923414,2312.0,2310.6,6.91843835]
[1769962430098,9.26923414,2312.0,2310.6,7.13502835]
[1769962430397,9.26923414,2312.0,2310.5,3.899]
[1769962430398,7.48354319,2311.9,2310.5,6.91843835]
[1769962430603,7.48354319,2311.7,2310.6,3.898]
[1769962430801,7.70003319,2311.7,2310.6,8.086]
[1769962430999,7.48354319,2311.5,2310.6,8.086]
[1769962431502,7.48354319,2311.3,2310.6,8.086]
[1769962431701,7.48354319,2311.3,2310.4,8.086]
[1769962431902,16.75277733,2311.2,2310.3,0.0031187]
[1769962432102,7.48354319,2311.1,2310.3,0.0031187]
[1769962432498,9.26923414,2311.0,2310.3,0.0031187]
[1769962432802,7.48354319,2311.4,2310.3,6.92155705]
[1769962433004,9.26923414,2311.3,2310.3,6.92155705]
[1769962434101,9.26923414,2311.3,2310.4,11.10643835]
[1769962434302,7.48354319,2311.7,2310.5,6.91843835]
[1769962434604,10.96598677,2311.4,2310.5,6.91843835]
[1769962435002,16.25277733,2311.3,2310.3,0.0031187]
[1769962435205,0.21647,2312.0,2310.5,4.191]
[1769962435406,9.26923414,2312.9,2310.5,4.191]
[1769962435407,0.21648,2311.9,2310.5,4.191]
[1769962435607,9.26923414,2312.9,2310.5,4.191]
[1769962436005,3.4475856,2312.6,2310.5,4.191]
[1769962436509,9.26923414,2312.5,2310.5,4.191]
[1769962436702,9.26923414,2312.5,2310.3,0.0031187]
[1769962436703,0.21652,2311.4,2310.3,0.0031187]
[1769962436902,0.21653,2311.3,2309.9,3.897]
[1769962437105,3.4475856,2312.1,2309.2,5.1526403]
[1769962437106,7.48354319,2310.7,2309.5,3.897]
[1769962437303,7.48354319,2310.7,2309.6,4.19]
[1769962437503,7.48354319,2310.5,2309.6,4.19]
[1769962437799,7.48738154,2310.5,2309.6,4.19469954]
[1769962438008,7.48354319,2310.3,2309.6,4.19469954]
[1769962438207,7.48354319,2310.3,2309.4,4.19]
[1769962438408,0.00383835,2310.5,2309.5,6.91843835]
[1769962438707,9.27307249,2310.5,2309.5,6.91843835]
[1769962439099,9.27307249,2310.5,2309.5,7.13513835]
[1769962439305,7.48354319,2311.1,2309.6,6.91843835]
[1769962439805,9.26923414,2311.0,2309.7,6.91843835]
[1769962440409,7.48354319,2311.5,2310.3,6.91843835]
[1769962440705,7.48354319,2311.5,2309.8,9.5036403]
[1769962440706,7.70011319,2310.9,2309.8,3.897]
[1769962440912,7.48354319,2311.2,2309.9,6.91843835]
[1769962441106,7.48354319,2311.8,2310.2,6.91843835]
[1769962441409,7.48354319,2312.1,2310.4,9.68709548]
[1769962441705,7.48354319,2312.1,2310.6,9.47048548]
[1769962441910,7.48354319,2311.9,2310.7,11.11243835]
[1769962442113,7.48354319,2311.9,2310.8,6.91843835]
[1769962442317,7.48354319,2311.7,2310.9,3.897]
[1769962442813,7.48354319,2311.5,2310.7,4.195]
[1769962443011,7.48354319,2311.5,2310.1,2.55204713]
[1769962443214,7.48354319,2310.9,2310.1,8.092]
[1769962443416,7.48354319,2310.7,2309.5,0.00347927]
[1769962443617,7.48354319,2311.1,2309.7,6.91843835]
[1769962443813,7.48354319,2310.8,2309.7,9.47048548]
[1769962444314,7.48354319,2311.2,2310.1,6.91843835]
[1769962444509,9.26923414,2311.1,2310.3,6.91843835]
[1769962444813,0.21648,2311.9,2310.6,6.91843835]
[1769962444814,7.70002319,2311.9,2310.6,6.91843835]
[1769962445004,7.48354319,2311.9,2310.8,6.91843835]
[1769962445318,7.48354319,2311.9,2310.8,9.48047432]
[1769962445614,0.34679992,2313.4,2310.8,9.48047432]
[1769962445615,7.48354319,2312.3,2311.0,6.91843835]
[1769962445813,7.48354319,2312.7,2311.6,6.91843835]
[1769962446014,7.48354319,2312.7,2311.7,10.65503597]
[1769962446206,3.4475856,2314.4,2311.7,10.65503597]
[1769962446207,7.48354319,2313.5,2311.8,6.91843835]
[1769962446411,7.48354319,2313.5,2312.1,6.91843835]
[1769962446609,7.48354319,2313.5,2312.1,9.48047432]
[1769962446915,7.48354319,2313.5,2312.1,2.56203597]
[1769962447111,7.48354319,2313.5,2312.2,8.094]
[1769962447609,7.48354319,2313.5,2312.3,7.30775855]
[1769962447809,7.37046914,2313.7,2312.4,4.198]
[1769962448209,7.37046914,2313.5,2312.4,4.198]
[1769962448413,7.37046914,2313.5,2312.5,4.2]
[1769962449812,7.37046914,2313.5,2312.4,3.896]
[1769962450019,7.37046914,2313.5,2312.6,1.63001323]
[1769962450918,7.37046914,2313.9,2312.6,1.63001323]
[1769962451118,7.37046914,2313.9,2312.5,2.56203597]
[1769962451319,7.37046914,2313.7,2312.5,2.56203597]
[1769962451617,7.37046914,2313.4,2312.2,2.56203597]
[1769962451815,7.37046914,2312.8,2311.7,3.895]
[1769962452015,7.37046914,2312.8,2311.8,4.198]
[1769962453214,7.37046914,2313.1,2311.9,7.30775855]
[1769962453413,7.37046914,2313.4,2312.2,7.30775855]
[1769962453615,7.37046914,2313.4,2312.2,9.86979452]
[1769962453809,7.37046914,2313.4,2312.3,4.198]
[1769962454014,7.37046914,2313.4,2312.4,3.895]
[1769962454623,7.37046914,2313.0,2311.6,2.56612651]
[1769962454921,7.58683914,2313.0,2311.9,3.895]
[1769962456115,7.58683914,2313.0,2311.9,4.197]
[1769962456919,7.58683914,2313.0,2311.6,0.00409054]
[1769962457123,7.58683914,2313.0,2311.7,4.195]
[1769962457318,7.37046914,2313.4,2311.9,7.30775855]
[1769962457518,7.37046914,2313.4,2312.0,8.091]
[1769962457719,7.37046914,2313.4,2312.1,7.30775855]
[1769962458123,7.37046914,2313.4,2312.2,7.30775855]
[1769962458821,7.37046914,2313.8,2312.5,7.30775855]
[1769962459018,7.37046914,2313.8,2312.2,9.86979452]
[1769962459219,7.37046914,2313.5,2312.2,2.56203597]
[1769962459417,7.37046914,2313.5,2312.1,6.54318151]
[1769962459617,7.37046914,2313.5,2312.2,8.097]
[1769962459822,7.37046914,2313.0,2312.0,3.98114554]
[1769962460022,7.37046914,2313.0,2312.0,4.204]
[1769962461128,7.37046914,2313.6,2312.2,7.30775855]
[1769962461526,7.37046914,2313.6,2312.3,6.76703597]
[1769962461828,7.37046914,2313.3,2312.3,8.099]
[1769962462223,7.37046914,2313.3,2312.0,6.54484885]
[1769962462419,7.37046914,2312.9,2312.1,4.207]
[1769962462922,7.58684914,2312.9,2311.6,0.00409054]
[1769962463123,7.58684914,2312.9,2311.1,6.44080037]
[1769962463124,0.21648,2311.8,2310.8,5.12504608]
[1769962463432,0.21648,2311.8,2310.6,7.30775855]
[1769962463828,3.29845383,2312.4,2310.6,7.30775855]
[1769962464024,3.30254437,2312.4,2310.6,7.31088731]
[1769962465633,3.30254437,2312.4,2310.8,7.30775855]
[1769962465831,0.21647,2312.0,2310.6,7.31088731]
[1769962466033,3.26550869,2312.0,2310.7,7.30775855]
[1769962466927,0.21647,2312.0,2310.7,7.30775855]
[1769962468140,3.05095153,2312.3,2310.7,7.30775855]
[1769962469034,3.26739153,2312.3,2310.7,7.30775855]
[1769962469928,0.00409054,2312.4,2310.7,7.30775855]
[1769962470236,0.21635,2313.2,2312.0,7.30775855]
[1769962470436,3.22643759,2313.2,2312.0,7.30775855]
[1769962470636,4.3264,2313.0,2312.0,7.30775855]
[1769962470832,4.3264,2312.8,2312.0,7.30775855]
[1769962471030,4.3264,2312.7,2311.7,7.30775855]
[1769962471336,4.3264,2312.6,2311.6,3.895]
[1769962471536,0.2164,2312.7,2311.6,3.895]
[1769962471835,4.3264,2312.3,2311.6,3.895]
[1769962472036,2.95523598,2312.5,2311.6,3.895]
[1769962472232,4.3264,2312.2,2311.6,3.895]
[1769962472535,4.3264,2312.5,2311.6,3.895]
[1769962472737,4.3264,2312.5,2311.6,11.20275855]
[1769962473240,0.21636,2313.1,2311.7,7.30775855]
[1769962475536,2.85100551,2312.6,2311.3,3.90279941]
[1769962475752,0.21649,2311.7,2310.6,7.31088731]
[1769962476239,4.3264,2311.3,2310.6,0.00312876]
[1769962476436,0.21652,2311.4,2310.6,0.00312876]
[1769962476839,4.3264,2311.1,2310.6,0.00312876]
[1769962477335,0.21655,2311.1,2310.0,4.212]
[1769962477638,0.21656,2311.0,2310.1,7.54679414]
[1769962478138,4.3264,2310.7,2309.8,7.54679414]
[1769962478335,0.00312876,2310.7,2309.8,7.55213521]
[1769962478641,4.3264,2310.5,2309.8,0.00534107]
[1769962479042,0.00312876,2310.7,2309.8,7.51625875]
[1769962479242,4.32952876,2310.7,2309.8,7.51625875]
[1769962479535,4.3264,2310.4,2309.8,0.00534107]
[1769962479741,4.3264,2310.3,2309.4,11.40591768]
[1769962479941,0.28613059,2310.7,2309.5,7.51358822]
[1769962480144,4.3264,2310.6,2309.5,7.51358822]
[1769962480441,4.3264,2310.5,2309.5,7.51358822]
[1769962480739,4.3264,2310.6,2309.5,7.51855336]
[1769962480937,0.21971876,2310.7,2309.5,7.51855336]
[1769962481440,0.00312876,2310.7,2309.5,7.51855336]
[1769962482336,4.3264,2310.6,2309.5,7.51855336]
[1769962482838,4.3264,2310.5,2309.5,7.51855336]
[1769962483043,4.3264,2310.6,2309.5,7.51855336]
[1769962483241,4.543,2310.6,2309.5,7.51855336]
[1769962483442,4.3264,2310.5,2309.5,7.51855336]
[1769962483843,4.3264,2310.3,2309.5,7.51855336]
[1769962484343,4.3264,2310.2,2309.5,7.51855336]
[1769962484538,4.3264,2310.3,2309.5,7.51855336]
[1769962484936,4.34218656,2312.0,2310.4,7.40480122]
[1769962485234,4.34218656,2312.0,2309.5,0.00496514]
[1769962485235,4.34218656,2312.0,2310.6,7.40480122]
[1769962485435,5.12974459,2312.7,2311.6,10.84813349]
[1769962485639,0.07528565,2313.8,2311.8,7.40480122]
[1769962485843,1.10286213,2314.0,2311.7,7.556]
[1769962485844,0.21632,2313.6,2312.0,7.40480122]
[1769962486044,0.22099919,2313.6,2312.0,7.41000921]
[1769962486443,0.21632,2313.5,2312.0,7.41000921]
[1769962486645,0.21634,2313.3,2312.0,7.41000921]
[1769962486841,4.32952876,2313.1,2312.0,7.41000921]
[1769962487042,4.32952876,2312.5,2311.2,7.40480122]
[1769962487236,0.21641,2312.7,2311.2,7.40480122]
[1769962487547,5.63723781,2312.2,2310.8,7.40480122]
[1769962487938,4.32952876,2312.0,2310.8,7.40480122]
[1769962488138,5.63723781,2312.2,2310.8,7.40903224]
[1769962489646,9.96676657,2312.2,2310.8,7.40903224]
[1769962489948,4.32952876,2311.8,2310.8,0.00423102]
[1769962490146,4.33396899,2311.8,2310.8,0.00423102]
[1769962490347,4.32952876,2311.6,2310.8,0.00423102]
[1769962490755,5.61668793,2311.4,2310.0,7.40480122]
[1769962490949,5.62112816,2311.8,2310.1,7.40480122]
[1769962491444,5.66680874,2311.7,2310.1,7.40480122]
[1769962491845,5.66680874,2311.7,2310.1,7.40890793]
[1769962492845,5.66680874,2311.4,2310.1,7.40890793]
[1769962493248,9.9963375,2311.4,2310.1,7.40890793]
[1769962493447,4.32952876,2311.4,2310.1,7.40890793]
[1769962493643,5.66600512,2311.8,2310.1,7.40890793]
[1769962493951,5.66600512,2311.8,2310.2,7.40480122]
[1769962495049,0.00444023,2311.8,2310.2,7.40480122]
[1769962497153,0.00444023,2311.8,2310.3,7.40480122]
[1769962497751,5.62167963,2311.8,2310.3,7.40480122]
[1769962497954,4.32952876,2311.5,2310.3,7.40480122]
[1769962498553,4.32952876,2311.3,2310.3,7.40480122]
[1769962498752,9.94676816,2311.5,2310.3,7.40480122]
[1769962498949,4.32952876,2311.0,2310.1,0.00410671]
[1769962499154,5.8337694,2311.3,2310.1,7.40890793]
[1769962499454,5.46861631,2311.8,2310.1,7.40890793]
[1769962499758,9.79370484,2311.5,2310.1,7.40890793]
[1769962500153,4.32952876,2311.4,2310.1,7.40890793]
[1769962500455,0.22092023,2311.8,2309.3,7.40480122]
[1769962500456,0.2166,2310.6,2309.3,7.40480122]
[1769962500648,0.21662,2310.4,2309.3,7.40480122]
[1769962501150,5.46006937,2311.0,2309.3,7.40480122]
[1769962501350,4.32952876,2310.8,2309.3,7.40480122]
[1769962501548,3.897,2311.4,2309.3,0.00386005]
[1769962501549,0.21666,2309.9,2309.3,0.00386005]
[1769962501758,5.46625401,2309.8,2308.6,7.40480122]
[1769962501960,0.2167,2309.5,2308.4,3.897]
[1769962502257,4.32952876,2309.2,2308.4,3.897]
[1769962502644,0.21675,2309.0,2307.9,7.40480122]
[1769962502947,4.32952876,2308.7,2307.6,7.40480122]
[1769962503146,5.5837546,2308.7,2307.3,7.40480122]
[1769962503353,5.3669846,2308.4,2307.0,15.51980122]
[1769962503551,5.3669846,2308.0,2307.0,3.897]
[1769962503755,5.3638267,2307.3,2306.2,7.40480122]
[1769962503951,5.3638267,2308.0,2306.2,7.40480122]
[1769962504258,5.3638267,2308.6,2306.8,7.40480122]
[1769962504451,6.77624662,2309.1,2306.8,7.40480122]
[1769962504452,5.5806467,2308.2,2306.8,7.40480122]
[1769962504652,4.32952876,2307.7,2306.5,7.40480122]
[1769962504851,0.00445871,2308.2,2306.8,7.40983507]
[1769962505048,5.3638267,2309.2,2307.1,7.40480122]
[1769962505255,5.36665592,2309.2,2307.7,7.40480122]
[1769962505452,5.36665592,2309.2,2307.7,11.30280122]
[1769962505765,5.36665592,2309.0,2307.7,7.40480122]
[1769962505955,5.58334592,2309.6,2307.7,7.40480122]
[1769962506155,5.36665592,2309.5,2307.7,7.40480122]
[1769962506357,9.69618468,2309.2,2307.7,7.40480122]
[1769962506550,5.36665592,2309.1,2307.7,7.40480122]
[1769962506752,5.36665592,2309.5,2307.7,7.40480122]
[1769962506958,0.00449414,2309.6,2308.1,7.40480122]
[1769962507252,5.34419981,2309.5,2308.3,7.40480122]
[1769962507559,0.21672,2309.3,2308.3,7.40480122]
[1769962507760,0.21672,2309.3,2307.9,6.87950838]
[1769962508161,5.58049017,2309.3,2307.9,6.87950838]
[1769962508361,0.21672,2309.3,2307.9,6.87950838]
[1769962508860,0.00449414,2309.6,2308.0,10.73401357]
[1769962509061,0.00449414,2309.6,2308.1,6.87950838]
[1769962509366,0.00449414,2309.6,2308.2,6.87950838]
[1769962510262,0.00449414,2309.6,2308.6,6.87950838]
[1769962510457,0.00449414,2309.6,2308.8,6.87950838]
[1769962511158,4.32952876,2309.3,2308.8,6.87950838]
[1769962511662,4.32952876,2309.2,2308.8,6.87950838]
[1769962511860,0.00449414,2309.6,2308.6,0.0054394]
[1769962512063,4.32952876,2309.1,2308.6,0.0054394]
[1769962512564,4.32952876,2308.7,2307.8,6.87950838]
[1769962512863,0.00449414,2309.6,2307.8,6.87950838]
[1769962513061,0.00449414,2309.6,2307.8,7.09635838]
[1769962513265,0.00449414,2309.6,2308.2,10.73401357]
[1769962513564,0.00449414,2309.6,2308.3,6.87950838]
[1769962513760,5.602725,2310.6,2308.6,6.87950838]
[1769962513962,0.21665,2310.0,2308.8,6.87950838]
[1769962514162,5.60721914,2310.4,2308.8,6.87950838]
[1769962514357,5.60721914,2309.8,2308.4,6.87950838]
[1769962514563,0.21669,2309.6,2308.4,6.87950838]
[1769962514762,4.32952876,2309.4,2308.4,6.87950838]
[1769962515064,4.32952876,2309.3,2308.4,6.87950838]
[1769962515461,4.32952876,2308.6,2308.2,0.00373505]
[1769962515658,4.32952876,2308.9,2308.2,0.00373505]
[1769962515863,5.54794972,2309.2,2308.2,0.00373505]
[1769962515864,4.32952876,2308.7,2308.2,0.00373505]
[1769962516264,4.32408936,2308.5,2308.2,0.00373505]
[1769962516563,0.00328376,2309.6,2307.8,6.87950838]
[1769962516564,5.76470972,2308.9,2307.8,6.87950838]
[1769962516864,5.76470972,2308.9,2307.4,6.87950838]
[1769962517060,4.32408936,2308.8,2307.4,6.87950838]
[1769962517263,0.21678,2308.6,2307.4,6.87950838]
[1769962517662,4.32408936,2308.5,2307.4,6.88496345]
[1769962518070,4.32408936,2308.4,2307.4,6.88496345]
[1769962518663,0.21675,2309.0,2307.4,6.88496345]
[1769962518862,5.60550474,2309.5,2307.5,3.85450519]
[1769962519068,0.21672,2309.3,2307.6,6.87950838]
[1769962519264,0.21672,2309.3,2307.6,10.73401357]
[1769962519465,0.21672,2309.3,2307.7,6.87950838]
[1769962520564,0.00328376,2309.6,2307.9,6.87950838]
[1769962520766,0.00328376,2309.6,2308.1,6.87950838]
[1769962521064,0.21997376,2309.6,2308.1,6.87950838]
[1769962521265,4.54406312,2309.6,2308.2,6.87950838]
[1769962521573,0.00328376,2309.6,2308.2,6.87950838]
[1769962521965,0.00328376,2309.6,2308.3,6.87950838]
[1769962522160,10.4706,2310.6,2308.7,3.85450519]
[1769962522368,0.2166,2310.6,2309.0,6.87950838]
[1769962522665,0.2166,2310.6,2309.2,6.87950838]
[1769962522865,4.32408936,2310.4,2309.2,6.87950838]
[1769962523171,4.3277764,2310.4,2309.2,6.88449486]
[1769962523368,4.32408936,2310.3,2309.2,6.88449486]
[1769962524266,0.00368704,2310.4,2309.2,6.88449486]
[1769962524460,4.32408936,2310.3,2309.3,6.87950838]
[1769962524862,4.32408936,2310.2,2309.3,6.87950838]
[1769962525063,4.54074936,2309.9,2309.2,0.00498648]
[1769962525268,4.32408936,2309.7,2309.2,0.00498648]
[1769962525471,4.32408936,2309.4,2309.2,0.00498648]
[1769962525668,4.32408936,2309.4,2308.6,6.87950838]
[1769962525868,4.32408936,2309.2,2308.6,6.87950838]
[1769962526071,4.32408936,2309.6,2308.6,6.87950838]
[1769962526368,0.21662,2310.3,2308.8,2.55900126]
[1769962526573,4.54073936,2310.0,2308.9,6.87950838]
[1769962526872,4.32408936,2309.9,2308.9,6.8829258]
[1769962527072,0.00368704,2310.4,2308.9,9.44192706]
[1769962527269,0.00368704,2310.4,2309.1,9.43850964]
[1769962527573,0.00368704,2310.4,2309.2,6.87950838]
[1769962528075,0.00368704,2310.4,2309.3,6.87950838]
[1769962528265,0.00368704,2310.4,2309.7,9.43850964]
[1769962528471,0.21655,2311.1,2309.8,9.43850964]
[1769962528666,0.21655,2311.1,2309.9,6.87950838]
[1769962529067,0.21655,2311.1,2309.9,9.43850964]
[1769962529269,6.85665232,2311.5,2310.2,6.87950838]
[1769962529463,0.00503922,2311.1,2310.2,6.87950838]
[1769962531567,0.00503922,2311.1,2310.0,11.12250838]
[1769962532176,7.07321232,2311.0,2309.7,9.43850964]
[1769962532377,0.21656,2311.0,2309.9,6.87950838]
[1769962532878,0.00503922,2311.1,2309.9,6.87950838]
[1769962533067,0.00503922,2311.1,2310.0,6.87950838]
[1769962533473,0.00503922,2311.1,2310.0,11.12350838]
[1769962533474,6.86169154,2311.1,2310.0,11.12350838]
[1769962533674,7.07322232,2310.9,2309.7,6.87950838]
[1769962533870,7.07322232,2310.9,2309.7,11.12350838]
[1769962534067,7.07322232,2310.9,2309.8,6.87950838]
[1769962534274,6.85665232,2310.5,2309.3,2.55900126]
[1769962534473,6.85665232,2310.5,2309.1,6.87950838]
[1769962536275,0.21665,2310.1,2309.1,6.87950838]
[1769962536676,0.2166,2310.6,2309.3,6.87950838]
[1769962536979,0.00503922,2311.1,2309.7,6.87950838]
[1769962537181,0.00503922,2311.1,2310.1,9.43850964]
[1769962537477,0.00503922,2311.1,2310.1,6.87950838]
[1769962537773,0.00503922,2311.1,2310.1,9.43850964]
[1769962537974,0.21651,2311.5,2310.3,9.77162487]
[1769962538277,0.21651,2311.5,2310.4,7.21262361]
[1769962538777,0.21647,2311.9,2310.7,7.21262361]
[1769962538981,7.24204687,2311.5,2310.7,0.0054651]
[1769962539282,0.21653,2311.4,2310.7,0.0054651]
[1769962539482,7.02552687,2311.5,2309.7,9.77162487]
[1769962539677,0.21659,2310.7,2309.7,7.21262361]
[1769962539880,0.2166,2310.6,2309.7,7.21262361]
[1769962540580,0.21661,2310.5,2309.7,7.21667667]
[1769962540976,0.21661,2310.4,2309.7,0.00405306]
[1769962541177,0.21657,2310.9,2309.7,7.21667667]
[1769962542972,4.11995855,2311.5,2309.7,7.21667667]
[1769962543181,7.02008832,2311.4,2309.8,7.21262361]
[1769962543480,3.90343855,2311.5,2309.8,7.21262361]
[1769962543481,7.02008832,2310.8,2309.8,7.21262361]
[1769962545082,0.2166,2310.6,2309.8,7.21262361]
[1769962545479,7.55999862,2311.2,2309.8,7.21262361]
[1769962545980,0.2166,2310.6,2309.7,0.00405306]
[1769962546172,0.2166,2310.6,2309.7,7.05074208]
[1769962548373,0.21655,2311.1,2309.8,9.60569028]
[1769962548579,0.21655,2311.1,2310.1,7.04668902]
[1769962548778,0.21655,2311.1,2310.1,11.29868902]
[1769962548983,0.21655,2311.1,2310.2,7.04668902]
[1769962549888,0.21658,2310.8,2309.9,2.57195519]
[1769962550188,0.21658,2310.8,2309.9,9.61864421]
[1769962550381,0.21658,2310.8,2310.1,7.04668902]
[1769962552490,0.21658,2310.8,2310.0,2.57195519]
[1769962552687,0.21658,2310.8,2310.0,9.61864421]
[1769962553687,0.21658,2310.8,2310.1,7.04668902]
[1769962556389,0.2166,2310.5,2309.8,7.04668902]
[1769962559690,0.21667,2309.8,2309.0,2.57195519]
[1769962559892,0.21667,2309.8,2308.9,2.57195519]
[1769962560187,0.2112049,2309.8,2309.2,7.04668902]
[1769962560594,0.00309459,2309.8,2309.2,7.05093435]
[1769962561188,0.00309459,2309.8,2309.4,7.04668902]
[1769962561390,7.34345862,2310.5,2309.4,7.04668902]
[1769962562295,0.22122141,2310.5,2309.4,7.04668902]
[1769962562493,0.21661,2310.4,2309.4,7.04668902]
[1769962562692,7.34345862,2310.2,2309.2,0.00424533]
[1769962563293,0.2167,2309.5,2308.6,11.33468902]
[1769962563596,0.21666,2309.9,2309.0,7.04668902]
[1769962563797,0.21668,2309.7,2309.0,7.04668902]
[1769962564190,0.21668,2309.7,2309.0,7.05184458]
[1769962564790,0.21674,2309.1,2308.4,2.57195519]
[1769962564999,0.21675,2309.0,2308.3,7.04668902]
[1769962565302,7.34345862,2309.1,2307.8,2.57195519]
[1769962565599,0.21683,2308.1,2307.2,4.292]
[1769962565808,0.21689,2307.5,2306.8,2.57195519]
[1769962566009,0.21689,2307.5,2306.4,2.57195519]
[1769962566209,0.00544267,2308.1,2306.5,2.57195519]
[1769962566407,0.00544267,2308.1,2307.1,2.57195519]
[1769962566601,0.00544267,2308.1,2307.2,4.292]
[1769962566801,0.00544267,2308.1,2307.2,4.29593987]
[1769962567001,0.00544267,2308.1,2307.2,0.00393987]
[1769962567198,0.21684,2308.0,2307.2,0.00393987]
[1769962567409,7.34890129,2308.1,2307.2,0.00393987]
[1769962567609,0.00544267,2308.1,2306.9,7.0979229]
[1769962568012,7.70282443,2308.0,2306.9,7.0979229]
[1769962568512,7.70282443,2308.0,2306.9,7.10136307]
[1769962569514,7.48598443,2308.0,2306.9,0.00344017]
[1769962569713,0.21688,2307.6,2306.9,0.00344017]
[1769962570103,7.4914271,2308.1,2306.9,7.10136307]
[1769962570409,0.22227267,2308.1,2306.9,7.10136307]
[1769962570916,0.21687,2307.7,2306.9,7.10136307]
[1769962571114,0.21688,2307.6,2306.9,7.10136307]
[1769962571314,0.21689,2307.5,2306.9,0.00344017]
[1769962571503,7.48598443,2307.8,2306.9,0.00344017]
[1769962571708,0.21684,2308.0,2306.9,7.10136307]
[1769962571906,0.21686,2307.8,2306.9,7.10136307]
[1769962572106,0.21687,2307.7,2306.9,7.10136307]
[1769962572307,0.21687,2307.7,2306.9,0.00344017]
[1769962572509,7.48598443,2307.6,2306.2,3.9]
[1769962572712,7.48598443,2307.6,2306.3,11.3869229]
[1769962572713,0.2169,2307.4,2306.3,11.3869229]
[1769962573303,7.48598443,2307.4,2306.3,7.0979229]
[1769962573506,7.48598443,2307.0,2306.0,0.10439759]
[1769962573713,0.21693,2307.1,2306.0,7.20791811]
[1769962574509,7.48598443,2307.1,2306.0,7.20791811]
[1769962574907,7.48598443,2307.2,2306.0,7.20791811]
[1769962575113,0.21697,2306.7,2306.0,0.10999521]
[1769962575508,0.21697,2306.7,2306.0,7.20791811]
[1769962575708,0.21692,2307.1,2306.0,7.20791811]
[1769962576012,0.21693,2307.0,2306.0,7.20791811]
[1769962576810,0.21694,2306.9,2306.0,7.20791811]
[1769962577012,7.48598443,2307.0,2306.0,7.20791811]
[1769962577209,7.70296443,2306.5,2306.0,0.10999521]
[1769962577412,0.217,2306.4,2305.4,7.0979229]
[1769962578412,0.22262437,2306.4,2305.4,7.10111532]
[1769962579210,7.48598443,2307.1,2305.4,7.10111532]
[1769962579712,0.21698,2306.5,2305.6,7.0979229]
[1769962580013,0.217,2306.3,2305.4,0.00319242]
[1769962580214,0.220035,2306.3,2305.4,0.00319242]
[1769962580812,0.21705,2305.8,2305.4,0.00319242]
[1769962581710,7.70303443,2305.8,2305.3,250.0]
[1769962581911,0.21701,2306.2,2305.4,7.0979229]
[1769962582307,0.21701,2306.2,2305.6,7.0979229]
[1769962582712,0.003035,2306.3,2305.6,7.0979229]
[1769962583018,0.21701,2306.2,2305.6,0.00473701]
[1769962583208,0.21702,2306.1,2305.6,0.00473701]
[1769962583514,7.70300443,2306.1,2305.6,0.00473701]
[1769962583711,7.70300443,2306.1,2305.3,257.0979229]
[1769962583712,7.70300443,2306.1,2305.3,250.0]
[1769962583914,0.21708,2305.5,2305.3,231.7135316]
[1769962584107,0.21708,2305.5,2305.3,231.1508316]
[1769962584311,0.21708,2305.5,2305.3,230.1444016]
[1769962584514,7.48598443,2306.1,2305.4,4.3368]
[1769962584714,0.21704,2305.9,2305.3,229.6899216]
[1769962584918,7.48598443,2306.1,2305.3,229.24996617]
[1769962585218,0.21707,2305.6,2305.3,236.80646118]
[1769962585414,0.21704,2305.9,2305.4,4.3368]
[1769962585620,0.21705,2305.8,2305.3,229.24996617]
[1769962585914,0.003035,2306.3,2305.4,11.89329501]
[1769962586110,0.003035,2306.3,2305.4,7.55649501]
[1769962586307,0.003035,2306.3,2305.5,11.89329501]
[1769962586508,0.003035,2306.3,2305.5,7.55649501]
[1769962586707,0.21704,2305.9,2305.3,229.25302778]
[1769962588017,3.903,2307.1,2305.4,7.55649501]
[1769962588315,0.21701,2306.2,2305.4,7.55649501]
[1769962588520,3.903,2307.1,2305.8,7.55649501]
[1769962588521,0.21696,2306.7,2305.8,7.55649501]
[1769962588725,0.21697,2306.6,2305.8,7.55649501]
[1769962589119,0.22056657,2306.6,2305.8,7.55649501]
[1769962589315,3.903,2307.1,2306.1,7.55649501]
[1769962589523,0.13575157,2306.6,2306.1,7.55649501]
[1769962589719,3.903,2307.1,2306.1,7.55649501]
[1769962589720,0.21698,2306.5,2306.1,7.55649501]
[1769962590420,3.903,2307.1,2306.2,11.89329501]
[1769962590622,0.21698,2306.5,2306.2,7.55649501]
[1769962590923,0.1315619,2306.5,2306.3,11.89329501]
[1769962591218,3.905,2308.2,2306.5,7.55649501]
[1769962591416,3.905,2308.2,2305.3,229.25302778]
[1769962591417,0.25829458,2307.4,2305.3,229.25302778]
[1769962591616,0.21695,2306.8,2305.4,7.552]
[1769962591821,0.21696,2306.7,2305.5,4.3368]
[1769962592316,0.21696,2306.7,2305.9,4.3368]
[1769962592714,0.21696,2306.7,2306.1,4.3368]
[1769962592910,0.21696,2306.7,2305.9,4.3368]
[1769962593318,0.21696,2306.7,2306.1,4.3368]
[1769962593521,0.21696,2306.7,2306.2,7.41794567]
[1769962593720,0.21696,2306.7,2305.8,4.3368]
[1769962593721,0.21696,2306.7,2306.4,7.41794567]
[1769962594021,0.27709867,2307.7,2306.5,7.41794567]
[1769962594921,0.21693,2307.1,2306.5,7.41794567]
[1769962595322,0.21693,2307.0,2306.5,7.41794567]
[1769962595521,0.21695,2306.9,2306.5,7.41794567]
[1769962595721,0.21695,2306.9,2306.6,11.75633203]
[1769962595924,0.21695,2306.9,2306.6,7.41953203]
[1769962596125,0.21695,2306.9,2306.6,11.75633203]
[1769962597122,6.40523413,2307.9,2306.7,7.40303882]
[1769962597422,0.2169,2307.4,2306.7,7.40303882]
[1769962597624,0.00462364,2308.2,2307.3,7.29455586]
[1769962597824,0.21686,2307.8,2307.3,7.29853834]
[1769962598023,0.00462364,2308.2,2307.3,7.29853834]
[1769962598024,0.00462364,2308.2,2307.4,7.26395391]
[1769962598223,0.00462364,2308.2,2307.7,7.26395391]
[1769962598726,0.00462364,2308.2,2307.9,7.26395391]
[1769962598924,0.00462364,2308.2,2307.6,4.3368]
[1769962599129,2.71182476,2307.7,2306.5,7.55560928]